{"text_format":"1","workbook":"xlsx","n_sheets":2,"sheets":["Unos na platni spisak","predložak_odsečka"],"not_rendered":{"charts":0,"images":0,"macros":1,"external_links":0,"defined_names":7,"comments":0,"pivot_tables":0},"unopened":[],"bounds":{"document_bytes":16777216,"sheet_cells":100000,"rows_first":2000,"rows_last":500,"rows_between":2000,"halvings":0,"cell_chars":16384,"cell_head_chars":4096},"cells_cut":0,"cells_raw":0,"read":"whole","date_system":"1900"}

{"sheet":"Unos na platni spisak","index":0,"n_rows":13,"n_cols":24,"rows_kept":13,"cut":false,"hidden":false,"merged":[]}
[null,"KALKULATOR PLATNOG SPISKA",null,null,null,null,null,null,null,null,"KRAJ PERIODA:",41372,null,"IME PREDUZEĆA:",null,"ADVENTURE WORKS"]
[]
[null,"ID","Ime zaposlenog","Red. radni časovi","Časovi odmora","Časovi bolovanja","Prekovremeni časovi","Stopa prekovremenog rada","Bruto dohodak","Takse i ugovori","Ostali\nugovori","Neto dohodak"," ","Tarifa po času","Status takse","Državne doz.","Državna taksa","Državni porez dobitka","Taksa socijalnog\nosiguranja","Taksa za medicinsku negu","Ukupne zadržane takse","Dedukcija osiguranja","Ostala red. dedukcija","Ukupne red. dedukcije"]
[null,1001,"Toma Simić",50,5,1,null,null,{"$f":"SUM(Zaposleni[[#This Row],[Red. radni časovi]:[Časovi bolovanja]])*Zaposleni[[#This Row],[Tarifa po času]]+Zaposleni[[#This Row],[Prekovremeni časovi]]*Zaposleni[[#This Row],[Stopa prekovremenog rada]]","v":560},{"$f":"Zaposleni[[#This Row],[Bruto dohodak]]*Zaposleni[[#This Row],[Ukupne zadržane takse]] + Zaposleni[[#This Row],[Ukupne red. dedukcije]]","v":273.08000000000004},20,{"$f":"Zaposleni[[#This Row],[Bruto dohodak]]-Zaposleni[[#This Row],[Takse i ugovori]]-Zaposleni[[#This Row],[Ostali\nugovori]]","v":266.91999999999996},null,10,1,4,2.3E-2,0.28000000000000003,6.3E-2,1.4500000000000001E-2,{"$f":"SUM(Zaposleni[[#This Row],[Državna taksa]:[Taksa za medicinsku negu]])","v":0.38050000000000006},20,40,{"$f":"SUM(Zaposleni[[#This Row],[Dedukcija osiguranja]:[Ostala red. dedukcija]])","v":60}]
[null,1002,"David Jović",40,null,null,null,null,{"$f":"SUM(Zaposleni[[#This Row],[Red. radni časovi]:[Časovi bolovanja]])*Zaposleni[[#This Row],[Tarifa po času]]+Zaposleni[[#This Row],[Prekovremeni časovi]]*Zaposleni[[#This Row],[Stopa prekovremenog rada]]","v":320},{"$f":"Zaposleni[[#This Row],[Bruto dohodak]]*Zaposleni[[#This Row],[Ukupne zadržane takse]] + Zaposleni[[#This Row],[Ukupne red. dedukcije]]","v":131.76000000000002},null,{"$f":"Zaposleni[[#This Row],[Bruto dohodak]]-Zaposleni[[#This Row],[Takse i ugovori]]-Zaposleni[[#This Row],[Ostali\nugovori]]","v":188.23999999999998},null,8,1,1,2.3E-2,0.28000000000000003,6.3E-2,1.4500000000000001E-2,{"$f":"SUM(Zaposleni[[#This Row],[Državna taksa]:[Taksa za medicinsku negu]])","v":0.38050000000000006},0,10,{"$f":"SUM(Zaposleni[[#This Row],[Dedukcija osiguranja]:[Ostala red. dedukcija]])","v":10}]
[null,1003,"Danijela Simić",35,3,null,null,null,{"$f":"SUM(Zaposleni[[#This Row],[Red. radni časovi]:[Časovi bolovanja]])*Zaposleni[[#This Row],[Tarifa po času]]+Zaposleni[[#This Row],[Prekovremeni časovi]]*Zaposleni[[#This Row],[Stopa prekovremenog rada]]","v":532},{"$f":"Zaposleni[[#This Row],[Bruto dohodak]]*Zaposleni[[#This Row],[Ukupne zadržane takse]] + Zaposleni[[#This Row],[Ukupne red. dedukcije]]","v":240.42600000000004},null,{"$f":"Zaposleni[[#This Row],[Bruto dohodak]]-Zaposleni[[#This Row],[Takse i ugovori]]-Zaposleni[[#This Row],[Ostali\nugovori]]","v":291.57399999999996},null,14,1,3,2.3E-2,0.28000000000000003,6.3E-2,1.4500000000000001E-2,{"$f":"SUM(Zaposleni[[#This Row],[Državna taksa]:[Taksa za medicinsku negu]])","v":0.38050000000000006},18,20,{"$f":"SUM(Zaposleni[[#This Row],[Dedukcija osiguranja]:[Ostala red. dedukcija]])","v":38}]
[null,1008,"Sebastijan Morić",50,5,1,null,null,{"$f":"SUM(Zaposleni[[#This Row],[Red. radni časovi]:[Časovi bolovanja]])*Zaposleni[[#This Row],[Tarifa po času]]+Zaposleni[[#This Row],[Prekovremeni časovi]]*Zaposleni[[#This Row],[Stopa prekovremenog rada]]","v":1120},{"$f":"Zaposleni[[#This Row],[Bruto dohodak]]*Zaposleni[[#This Row],[Ukupne zadržane takse]] + Zaposleni[[#This Row],[Ukupne red. dedukcije]]","v":441.16000000000008},null,{"$f":"Zaposleni[[#This Row],[Bruto dohodak]]-Zaposleni[[#This Row],[Takse i ugovori]]-Zaposleni[[#This Row],[Ostali\nugovori]]","v":678.83999999999992},null,20,1,0,2.3E-2,0.28000000000000003,6.3E-2,1.4500000000000001E-2,{"$f":"SUM(Zaposleni[[#This Row],[Državna taksa]:[Taksa za medicinsku negu]])","v":0.38050000000000006},15,null,{"$f":"SUM(Zaposleni[[#This Row],[Dedukcija osiguranja]:[Ostala red. dedukcija]])","v":15}]
[null,1011,"Izabela Senić",40,null,null,2,15,{"$f":"SUM(Zaposleni[[#This Row],[Red. radni časovi]:[Časovi bolovanja]])*Zaposleni[[#This Row],[Tarifa po času]]+Zaposleni[[#This Row],[Prekovremeni časovi]]*Zaposleni[[#This Row],[Stopa prekovremenog rada]]","v":430},{"$f":"Zaposleni[[#This Row],[Bruto dohodak]]*Zaposleni[[#This Row],[Ukupne zadržane takse]] + Zaposleni[[#This Row],[Ukupne red. dedukcije]]","v":223.61500000000004},null,{"$f":"Zaposleni[[#This Row],[Bruto dohodak]]-Zaposleni[[#This Row],[Takse i ugovori]]-Zaposleni[[#This Row],[Ostali\nugovori]]","v":206.38499999999996},null,10,1,0,2.3E-2,0.28000000000000003,6.3E-2,1.4500000000000001E-2,{"$f":"SUM(Zaposleni[[#This Row],[Državna taksa]:[Taksa za medicinsku negu]])","v":0.38050000000000006},20,40,{"$f":"SUM(Zaposleni[[#This Row],[Dedukcija osiguranja]:[Ostala red. dedukcija]])","v":60}]
[null,1012,"David Bojić",40,5,1,null,null,{"$f":"SUM(Zaposleni[[#This Row],[Red. radni časovi]:[Časovi bolovanja]])*Zaposleni[[#This Row],[Tarifa po času]]+Zaposleni[[#This Row],[Prekovremeni časovi]]*Zaposleni[[#This Row],[Stopa prekovremenog rada]]","v":552},{"$f":"Zaposleni[[#This Row],[Bruto dohodak]]*Zaposleni[[#This Row],[Ukupne zadržane takse]] + Zaposleni[[#This Row],[Ukupne red. dedukcije]]","v":270.03600000000006},null,{"$f":"Zaposleni[[#This Row],[Bruto dohodak]]-Zaposleni[[#This Row],[Takse i ugovori]]-Zaposleni[[#This Row],[Ostali\nugovori]]","v":281.96399999999994},null,12,1,4,2.3E-2,0.28000000000000003,6.3E-2,1.4500000000000001E-2,{"$f":"SUM(Zaposleni[[#This Row],[Državna taksa]:[Taksa za medicinsku negu]])","v":0.38050000000000006},20,40,{"$f":"SUM(Zaposleni[[#This Row],[Dedukcija osiguranja]:[Ostala red. dedukcija]])","v":60}]
[null,1025,"Ana Vesić",36,null,2,1,18,{"$f":"SUM(Zaposleni[[#This Row],[Red. radni časovi]:[Časovi bolovanja]])*Zaposleni[[#This Row],[Tarifa po času]]+Zaposleni[[#This Row],[Prekovremeni časovi]]*Zaposleni[[#This Row],[Stopa prekovremenog rada]]","v":474},{"$f":"Zaposleni[[#This Row],[Bruto dohodak]]*Zaposleni[[#This Row],[Ukupne zadržane takse]] + Zaposleni[[#This Row],[Ukupne red. dedukcije]]","v":225.35700000000003},25,{"$f":"Zaposleni[[#This Row],[Bruto dohodak]]-Zaposleni[[#This Row],[Takse i ugovori]]-Zaposleni[[#This Row],[Ostali\nugovori]]","v":223.64299999999997},null,12,1,2,2.3E-2,0.28000000000000003,6.3E-2,1.4500000000000001E-2,{"$f":"SUM(Zaposleni[[#This Row],[Državna taksa]:[Taksa za medicinsku negu]])","v":0.38050000000000006},25,20,{"$f":"SUM(Zaposleni[[#This Row],[Dedukcija osiguranja]:[Ostala red. dedukcija]])","v":45}]
[null,1032,"Luka Abramović",40,5,1,null,null,{"$f":"SUM(Zaposleni[[#This Row],[Red. radni časovi]:[Časovi bolovanja]])*Zaposleni[[#This Row],[Tarifa po času]]+Zaposleni[[#This Row],[Prekovremeni časovi]]*Zaposleni[[#This Row],[Stopa prekovremenog rada]]","v":460},{"$f":"Zaposleni[[#This Row],[Bruto dohodak]]*Zaposleni[[#This Row],[Ukupne zadržane takse]] + Zaposleni[[#This Row],[Ukupne red. dedukcije]]","v":175.03000000000003},50,{"$f":"Zaposleni[[#This Row],[Bruto dohodak]]-Zaposleni[[#This Row],[Takse i ugovori]]-Zaposleni[[#This Row],[Ostali\nugovori]]","v":234.96999999999997},null,10,1,3,2.3E-2,0.28000000000000003,6.3E-2,1.4500000000000001E-2,{"$f":"SUM(Zaposleni[[#This Row],[Državna taksa]:[Taksa za medicinsku negu]])","v":0.38050000000000006},null,null,{"$f":"SUM(Zaposleni[[#This Row],[Dedukcija osiguranja]:[Ostala red. dedukcija]])","v":0}]
[null,1049,"David Lukić",40,1,null,null,null,{"$f":"SUM(Zaposleni[[#This Row],[Red. radni časovi]:[Časovi bolovanja]])*Zaposleni[[#This Row],[Tarifa po času]]+Zaposleni[[#This Row],[Prekovremeni časovi]]*Zaposleni[[#This Row],[Stopa prekovremenog rada]]","v":615},{"$f":"Zaposleni[[#This Row],[Bruto dohodak]]*Zaposleni[[#This Row],[Ukupne zadržane takse]] + Zaposleni[[#This Row],[Ukupne red. dedukcije]]","v":259.00750000000005},23,{"$f":"Zaposleni[[#This Row],[Bruto dohodak]]-Zaposleni[[#This Row],[Takse i ugovori]]-Zaposleni[[#This Row],[Ostali\nugovori]]","v":332.99249999999995},null,15,1,2,2.3E-2,0.28000000000000003,6.3E-2,1.4500000000000001E-2,{"$f":"SUM(Zaposleni[[#This Row],[Državna taksa]:[Taksa za medicinsku negu]])","v":0.38050000000000006},25,null,{"$f":"SUM(Zaposleni[[#This Row],[Dedukcija osiguranja]:[Ostala red. dedukcija]])","v":25}]
[null,"Ukupne vrednosti",{"$f":"SUBTOTAL(103,Zaposleni[Ime zaposlenog])","v":9},{"$f":"SUBTOTAL(109,Zaposleni[Red. radni časovi])","v":371},{"$f":"SUBTOTAL(109,Zaposleni[Časovi odmora])","v":24},{"$f":"SUBTOTAL(109,Zaposleni[Časovi bolovanja])","v":6},{"$f":"SUBTOTAL(109,Zaposleni[Prekovremeni časovi])","v":3},null,{"$f":"SUBTOTAL(109,Zaposleni[Bruto dohodak])","v":5063},{"$f":"SUBTOTAL(109,Zaposleni[Takse i ugovori])","v":2239.4715000000001},{"$f":"SUBTOTAL(109,Zaposleni[Ostali\nugovori])","v":118},{"$f":"SUBTOTAL(109,Zaposleni[Neto dohodak])","v":2705.5284999999994},null,null,null,null,null,null,null,null,null,{"$f":"SUBTOTAL(109,Zaposleni[Dedukcija osiguranja])","v":143},{"$f":"SUBTOTAL(109,Zaposleni[Ostala red. dedukcija])","v":170},{"$f":"SUBTOTAL(109,Zaposleni[Ukupne red. dedukcije])","v":313}]

{"sheet":"predložak_odsečka","index":1,"n_rows":47,"n_cols":13,"rows_kept":47,"cut":false,"hidden":true,"merged":[[45,2,45,3],[32,2,32,3],[33,2,33,3],[20,2,20,3],[21,2,21,3],[2,3,2,4],[14,3,14,4],[26,3,26,4],[38,3,38,4],[44,2,44,3],[8,2,8,3],[9,2,9,3],[2,7,2,8],[14,7,14,8],[26,7,26,8],[38,7,38,8],[38,11,38,12],[26,11,26,12],[14,11,14,12],[2,11,2,12]]}
[]
[null,null,{"$f":"Ime_preduzeća","v":"ADVENTURE WORKS"}]
[null,null,"PERIOD",{"$f":"Krajperioda","v":41372},null,null,"IME",{"$f":"IFERROR(INDEX(Zaposleni[Ime zaposlenog],Odsečak),\"\")","v":"Toma Simić"},null,null,"ID ZAPOSLENOG",{"$f":"IFERROR(INDEX(Zaposleni[ID],Odsečak),\"\")","v":1001}]
[null,null,"Status takse",null,{"$f":"IFERROR(INDEX(Zaposleni[Status takse],Odsečak),\"\")","v":1},null,"Državna izdvajanja (Od W-4)",null,{"$f":"IFERROR(INDEX(Zaposleni[Državne doz.],Odsečak),\"\")","v":4},null,"Radni časovi",null,{"$f":"IFERROR(INDEX(Zaposleni[Red. radni časovi],Odsečak),\"\")","v":50}]
[null,null,"Tarifa po času",null,{"$f":"IFERROR(INDEX(Zaposleni[Tarifa po času],Odsečak),\"\")","v":10},null,"Stopa prekovremenog rada",null,{"$f":"IFERROR(INDEX(Zaposleni[Stopa prekovremenog rada],Odsečak),\"\")","v":0},null,"Časovi bolovanja",null,{"$f":"IFERROR(INDEX(Zaposleni[Časovi bolovanja],Odsečak),\"\")","v":1}]
[null,null,"Taksa socijalnog osiguranja",null,{"$f":"IFERROR(INDEX(Zaposleni[Taksa socijalnog\nosiguranja],Odsečak)  *  INDEX(Zaposleni[Bruto dohodak],Odsečak),\"\")","v":35.28},null,"Državni porez dobitka ",null,{"$f":"IFERROR(INDEX(Zaposleni[Državni porez dobitka],Odsečak)  *  INDEX(Zaposleni[Bruto dohodak],Odsečak),\"\")","v":156.80000000000001},null,"Časovi odmora",null,{"$f":"IFERROR(INDEX(Zaposleni[Časovi odmora],Odsečak),\"\")","v":5}]
[null,null,"Taksa za medicinsku negu ",null,{"$f":"IFERROR(INDEX(Zaposleni[Taksa za medicinsku negu],Odsečak)  *  INDEX(Zaposleni[Bruto dohodak],Odsečak),\"\")","v":8.120000000000001},null,"Državna taksa ",null,{"$f":"IFERROR(INDEX(Zaposleni[Državna taksa],Odsečak)  *  INDEX(Zaposleni[Bruto dohodak],Odsečak),\"\")","v":12.879999999999999},null,"Prekovremeni časovi",null,{"$f":"IFERROR(INDEX(Zaposleni[Prekovremeni časovi],Odsečak),\"\")","v":0}]
[null,null,"Dedukcija osiguranja",null,{"$f":"IFERROR(INDEX(Zaposleni[Dedukcija osiguranja],Odsečak),\"\")","v":20},null,"Ostala redovna dedukcija",null,{"$f":"IFERROR(INDEX(Zaposleni[Ostala red. dedukcija],Odsečak),\"\")","v":40},null,"Bruto dohodak",null,{"$f":"IFERROR(INDEX(Zaposleni[Bruto dohodak],Odsečak),\"\")","v":560}]
[null,null,"Ukupne takse i",null,{"$f":"IFERROR(INDEX(Zaposleni[Takse i ugovori],Odsečak),\"\")","v":273.08000000000004},null,"Ostala dedukcija",null,{"$f":"IFERROR(INDEX(Zaposleni[Ostali\nugovori],Odsečak),\"\")","v":20},null,"Ukupna taksa i dedukcije ",null,{"$f":"IFERROR(INDEX(Zaposleni[Takse i ugovori],Odsečak)  +  INDEX(Zaposleni[Ostali\nugovori],Odsečak),\"\")","v":293.08000000000004}]
[null,null,"Redovne dedukcije"]
[null,null,null,null,null,null,null,null,null,null,"NETO DOHODAK",null,{"$f":"IFERROR(INDEX(Zaposleni[Neto dohodak],Odsečak),\"\")","v":266.91999999999996}]
[]
[]
[null,null,{"$f":"Ime_preduzeća","v":"ADVENTURE WORKS"}]
[null,null,"PERIOD",{"$f":"Krajperioda","v":41372},null,null,"IME",{"$f":"IFERROR(INDEX(Zaposleni[Ime zaposlenog],Odsečak),\"\")","v":"David Jović"},null,null,"ID ZAPOSLENOG",{"$f":"IFERROR(INDEX(Zaposleni[ID],Odsečak),\"\")","v":1002}]
[null,null,"Status takse",null,{"$f":"IFERROR(INDEX(Zaposleni[Status takse],Odsečak),\"\")","v":1},null,"Državna izdvajanja (Od W-4)",null,{"$f":"IFERROR(INDEX(Zaposleni[Državne doz.],Odsečak),\"\")","v":1},null,"Radni časovi",null,{"$f":"IFERROR(INDEX(Zaposleni[Red. radni časovi],Odsečak),\"\")","v":40}]
[null,null,"Tarifa po času",null,{"$f":"IFERROR(INDEX(Zaposleni[Tarifa po času],Odsečak),\"\")","v":8},null,"Stopa prekovremenog rada",null,{"$f":"IFERROR(INDEX(Zaposleni[Stopa prekovremenog rada],Odsečak),\"\")","v":0},null,"Časovi bolovanja",null,{"$f":"IFERROR(INDEX(Zaposleni[Časovi bolovanja],Odsečak),\"\")","v":0}]
[null,null,"Taksa socijalnog osiguranja",null,{"$f":"IFERROR(INDEX(Zaposleni[Taksa socijalnog\nosiguranja],Odsečak)  *  INDEX(Zaposleni[Bruto dohodak],Odsečak),\"\")","v":20.16},null,"Državni porez dobitka ",null,{"$f":"IFERROR(INDEX(Zaposleni[Državni porez dobitka],Odsečak)  *  INDEX(Zaposleni[Bruto dohodak],Odsečak),\"\")","v":89.600000000000009},null,"Časovi odmora",null,{"$f":"IFERROR(INDEX(Zaposleni[Časovi odmora],Odsečak),\"\")","v":0}]
[null,null,"Taksa za medicinsku negu ",null,{"$f":"IFERROR(INDEX(Zaposleni[Taksa za medicinsku negu],Odsečak)  *  INDEX(Zaposleni[Bruto dohodak],Odsečak),\"\")","v":4.6400000000000006},null,"Državna taksa ",null,{"$f":"IFERROR(INDEX(Zaposleni[Državna taksa],Odsečak)  *  INDEX(Zaposleni[Bruto dohodak],Odsečak),\"\")","v":7.3599999999999994},null,"Prekovremeni časovi",null,{"$f":"IFERROR(INDEX(Zaposleni[Prekovremeni časovi],Odsečak),\"\")","v":0}]
[null,null,"Dedukcija osiguranja",null,{"$f":"IFERROR(INDEX(Zaposleni[Dedukcija osiguranja],Odsečak),\"\")","v":0},null,"Ostala redovna dedukcija",null,{"$f":"IFERROR(INDEX(Zaposleni[Ostala red. dedukcija],Odsečak),\"\")","v":10},null,"Bruto dohodak",null,{"$f":"IFERROR(INDEX(Zaposleni[Bruto dohodak],Odsečak),\"\")","v":320}]
[null,null,"Ukupne takse i",null,{"$f":"IFERROR(INDEX(Zaposleni[Takse i ugovori],Odsečak),\"\")","v":131.76000000000002},null,"Ostala dedukcija",null,{"$f":"IFERROR(INDEX(Zaposleni[Ostali\nugovori],Odsečak),\"\")","v":0},null,"Ukupna taksa i dedukcije ",null,{"$f":"IFERROR(INDEX(Zaposleni[Takse i ugovori],Odsečak)  +  INDEX(Zaposleni[Ostali\nugovori],Odsečak),\"\")","v":131.76000000000002}]
[null,null,"Redovne dedukcije"]
[null,null,null,null,null,null,null,null,null,null,"NETO DOHODAK",null,{"$f":"IFERROR(INDEX(Zaposleni[Neto dohodak],Odsečak),\"\")","v":188.23999999999998}]
[]
[]
[null,null,{"$f":"Ime_preduzeća","v":"ADVENTURE WORKS"}]
[null,null,"PEROID",{"$f":"Krajperioda","v":41372},null,null,"IME",{"$f":"IFERROR(INDEX(Zaposleni[Ime zaposlenog],Odsečak),\"\")","v":"Danijela Simić"},null,null,"ID ZAPOSLENOG",{"$f":"IFERROR(INDEX(Zaposleni[ID],Odsečak),\"\")","v":1003}]
[null,null,"Status takse",null,{"$f":"IFERROR(INDEX(Zaposleni[Status takse],Odsečak),\"\")","v":1},null,"Državna izdvajanja (Od W-4)",null,{"$f":"IFERROR(INDEX(Zaposleni[Državne doz.],Odsečak),\"\")","v":3},null,"Radni časovi",null,{"$f":"IFERROR(INDEX(Zaposleni[Red. radni časovi],Odsečak),\"\")","v":35}]
[null,null,"Tarifa po času",null,{"$f":"IFERROR(INDEX(Zaposleni[Tarifa po času],Odsečak),\"\")","v":14},null,"Stopa prekovremenog rada",null,{"$f":"IFERROR(INDEX(Zaposleni[Stopa prekovremenog rada],Odsečak),\"\")","v":0},null,"Časovi bolovanja",null,{"$f":"IFERROR(INDEX(Zaposleni[Časovi bolovanja],Odsečak),\"\")","v":0}]
[null,null,"Taksa socijalnog osiguranja",null,{"$f":"IFERROR(INDEX(Zaposleni[Taksa socijalnog\nosiguranja],Odsečak)  *  INDEX(Zaposleni[Bruto dohodak],Odsečak),\"\")","v":33.515999999999998},null,"Državni porez dobitka ",null,{"$f":"IFERROR(INDEX(Zaposleni[Državni porez dobitka],Odsečak)  *  INDEX(Zaposleni[Bruto dohodak],Odsečak),\"\")","v":148.96},null,"Časovi odmora",null,{"$f":"IFERROR(INDEX(Zaposleni[Časovi odmora],Odsečak),\"\")","v":3}]
[null,null,"Taksa za medicinsku negu ",null,{"$f":"IFERROR(INDEX(Zaposleni[Taksa za medicinsku negu],Odsečak)  *  INDEX(Zaposleni[Bruto dohodak],Odsečak),\"\")","v":7.7140000000000004},null,"Državna taksa ",null,{"$f":"IFERROR(INDEX(Zaposleni[Državna taksa],Odsečak)  *  INDEX(Zaposleni[Bruto dohodak],Odsečak),\"\")","v":12.236000000000001},null,"Prekovremeni časovi",null,{"$f":"IFERROR(INDEX(Zaposleni[Prekovremeni časovi],Odsečak),\"\")","v":0}]
[null,null,"Dedukcija osiguranja",null,{"$f":"IFERROR(INDEX(Zaposleni[Dedukcija osiguranja],Odsečak),\"\")","v":18},null,"Ostala redovna dedukcija",null,{"$f":"IFERROR(INDEX(Zaposleni[Ostala red. dedukcija],Odsečak),\"\")","v":20},null,"Bruto dohodak",null,{"$f":"IFERROR(INDEX(Zaposleni[Bruto dohodak],Odsečak),\"\")","v":532}]
[null,null,"Ukupne takse i",null,{"$f":"IFERROR(INDEX(Zaposleni[Takse i ugovori],Odsečak),\"\")","v":240.42600000000004},null,"Ostala dedukcija",null,{"$f":"IFERROR(INDEX(Zaposleni[Ostali\nugovori],Odsečak),\"\")","v":0},null,"Ukupna taksa i dedukcije ",null,{"$f":"IFERROR(INDEX(Zaposleni[Takse i ugovori],Odsečak)  +  INDEX(Zaposleni[Ostali\nugovori],Odsečak),\"\")","v":240.42600000000004}]
[null,null,"Redovne dedukcije"]
[null,null,null,null,null,null,null,null,null,null,"NETO DOHODAK",null,{"$f":"IFERROR(INDEX(Zaposleni[Neto dohodak],Odsečak),\"\")","v":291.57399999999996}]
[]
[]
[null,null,{"$f":"Ime_preduzeća","v":"ADVENTURE WORKS"}]
[null,null,"PERIOD",{"$f":"Krajperioda","v":41372},null,null,"IME",{"$f":"IFERROR(INDEX(Zaposleni[Ime zaposlenog],Odsečak),\"\")","v":"Sebastijan Morić"},null,null,"ID ZAPOSLENOG",{"$f":"IFERROR(INDEX(Zaposleni[ID],Odsečak),\"\")","v":1008}]
[null,null,"Status takse",null,{"$f":"IFERROR(INDEX(Zaposleni[Status takse],Odsečak),\"\")","v":1},null,"Državna izdvajanja (Od W-4)",null,{"$f":"IFERROR(INDEX(Zaposleni[Državne doz.],Odsečak),\"\")","v":0},null,"Radni časovi",null,{"$f":"IFERROR(INDEX(Zaposleni[Red. radni časovi],Odsečak),\"\")","v":50}]
[null,null,"Tarifa po času",null,{"$f":"IFERROR(INDEX(Zaposleni[Tarifa po času],Odsečak),\"\")","v":20},null,"Stopa prekovremenog rada",null,{"$f":"IFERROR(INDEX(Zaposleni[Stopa prekovremenog rada],Odsečak),\"\")","v":0},null,"Časovi bolovanja",null,{"$f":"IFERROR(INDEX(Zaposleni[Časovi bolovanja],Odsečak),\"\")","v":1}]
[null,null,"Taksa socijalnog osiguranja",null,{"$f":"IFERROR(INDEX(Zaposleni[Taksa socijalnog\nosiguranja],Odsečak)  *  INDEX(Zaposleni[Bruto dohodak],Odsečak),\"\")","v":70.56},null,"Državni porez dobitka ",null,{"$f":"IFERROR(INDEX(Zaposleni[Državni porez dobitka],Odsečak)  *  INDEX(Zaposleni[Bruto dohodak],Odsečak),\"\")","v":313.60000000000002},null,"Časovi odmora",null,{"$f":"IFERROR(INDEX(Zaposleni[Časovi odmora],Odsečak),\"\")","v":5}]
[null,null,"Taksa za medicinsku negu ",null,{"$f":"IFERROR(INDEX(Zaposleni[Taksa za medicinsku negu],Odsečak)  *  INDEX(Zaposleni[Bruto dohodak],Odsečak),\"\")","v":16.240000000000002},null,"Državna taksa ",null,{"$f":"IFERROR(INDEX(Zaposleni[Državna taksa],Odsečak)  *  INDEX(Zaposleni[Bruto dohodak],Odsečak),\"\")","v":25.759999999999998},null,"Prekovremeni časovi",null,{"$f":"IFERROR(INDEX(Zaposleni[Prekovremeni časovi],Odsečak),\"\")","v":0}]
[null,null,"Dedukcija osiguranja",null,{"$f":"IFERROR(INDEX(Zaposleni[Dedukcija osiguranja],Odsečak),\"\")","v":15},null,"Ostala redovna dedukcija",null,{"$f":"IFERROR(INDEX(Zaposleni[Ostala red. dedukcija],Odsečak),\"\")","v":0},null,"Bruto dohodak",null,{"$f":"IFERROR(INDEX(Zaposleni[Bruto dohodak],Odsečak),\"\")","v":1120}]
[null,null,"Ukupne takse i",null,{"$f":"IFERROR(INDEX(Zaposleni[Takse i ugovori],Odsečak),\"\")","v":441.16000000000008},null,"Ostala dedukcija",null,{"$f":"IFERROR(INDEX(Zaposleni[Ostali\nugovori],Odsečak),\"\")","v":0},null,"Ukupna taksa i dedukcije ",null,{"$f":"IFERROR(INDEX(Zaposleni[Takse i ugovori],Odsečak)  +  INDEX(Zaposleni[Ostali\nugovori],Odsečak),\"\")","v":441.16000000000008}]
[null,null,"Redovne dedukcije"]
[null,null,null,null,null,null,null,null,null,null,"NETO DOHODAK",null,{"$f":"IFERROR(INDEX(Zaposleni[Neto dohodak],Odsečak),\"\")","v":678.83999999999992}]